[Event "*** Titled Tuesday Blitz"]
[Site "Chess.com"]
[Date "2020.02.04"]
[Round "2"]
[White "LawrenceTrent"]
[Black "Konavets"]
[Result "0-1"]
[WhiteElo "2621"]
[BlackElo "3007"]
[TimeControl "180+2"]
[EndTime "13:25:20 PST"]
[Termination "Konavets won by resignation"]

1. d4 {[%clk 0:03:01.9]} 1... Nf6 {[%clk 0:03:00.4]} 2. Nc3 {[%clk 0:03:02.4]}
2... g6 {[%clk 0:03:00.8]} 3. e4 {[%clk 0:03:02.4]} 3... d6 {[%clk 0:03:02.3]}
4. Be3 {[%clk 0:03:01.4]} 4... c6 {[%clk 0:03:03.5]} 5. Qd2 {[%clk 0:02:58.1]}
5... b5 {[%clk 0:03:04.7]} 6. f3 {[%clk 0:02:59.1]} 6... Nbd7 {[%clk 0:03:03.7]}
7. g4 {[%clk 0:02:55]} 7... Nb6 {[%clk 0:03:04.7]} 8. a4 {[%clk 0:02:49.4]} 8...
b4 {[%clk 0:03:05.6]} 9. Nd1 {[%clk 0:02:50.6]} 9... a5 {[%clk 0:03:06.6]} 10.
Nf2 {[%clk 0:02:50.8]} 10... h5 {[%clk 0:03:07.3]} 11. h3 {[%clk 0:02:46.6]}
11... hxg4 {[%clk 0:03:07.7]} 12. hxg4 {[%clk 0:02:47.7]} 12... Rxh1 {[%clk
0:03:08.8]} 13. Nxh1 {[%clk 0:02:49.6]} 13... Be6 {[%clk 0:03:09]} 14. b3 {[%clk
0:02:43.9]} 14... Bg7 {[%clk 0:03:09.6]} 15. Ng3 {[%clk 0:02:44.7]} 15... Qc7
{[%clk 0:03:09.4]} 16. Nh3 {[%clk 0:02:41.8]} 16... c5 {[%clk 0:03:09.8]} 17.
Bb5+ {[%clk 0:02:32.7]} 17... Nfd7 {[%clk 0:03:10.5]} 18. Ng5 {[%clk 0:02:32.5]}
18... O-O-O {[%clk 0:03:10]} 19. Rd1 {[%clk 0:02:27.6]} 19... d5 {[%clk
0:03:03.5]} 20. Ba6+ {[%clk 0:02:00.3]} 20... Kb8 {[%clk 0:03:04.5]} 21. Bf4
{[%clk 0:02:01.5]} 21... Ne5 {[%clk 0:03:06.1]} 22. dxe5 {[%clk 0:02:00.3]}
22... Bxe5 {[%clk 0:03:06.8]} 23. Nxe6 {[%clk 0:01:54.1]} 23... fxe6 {[%clk
0:03:07.3]} 24. Bxe5 {[%clk 0:01:55.2]} 24... Qxe5 {[%clk 0:03:08.5]} 25. Ne2
{[%clk 0:01:57.1]} 25... Rf8 {[%clk 0:03:04.3]} 26. Qe3 {[%clk 0:01:57.7]} 26...
d4 {[%clk 0:02:44.8]} 27. Qf2 {[%clk 0:01:58.8]} 27... Qd6 {[%clk 0:02:37.3]}
28. Bd3 {[%clk 0:01:42.3]} 28... g5 {[%clk 0:02:35.2]} 29. Qg3 {[%clk
0:01:37.2]} 29... Qxg3+ {[%clk 0:02:32.7]} 30. Nxg3 {[%clk 0:01:39.1]} 30...
Rxf3 {[%clk 0:02:34.1]} 31. Nf1 {[%clk 0:01:37.5]} 31... Nd7 {[%clk 0:02:34]}
32. Be2 {[%clk 0:01:33.2]} 32... Rf4 {[%clk 0:02:32.7]} 33. Ng3 {[%clk
0:01:28.5]} 33... Ne5 {[%clk 0:02:34]} 34. Kd2 {[%clk 0:01:29.4]} 34... Rf2
{[%clk 0:02:26.9]} 35. Rh1 {[%clk 0:01:19.5]} 35... Rg2 {[%clk 0:02:20]} 36. Nf1
{[%clk 0:01:15.7]} 36... Nxg4 {[%clk 0:02:20.5]} 37. Rh7 {[%clk 0:01:04.2]}
37... Kc7 {[%clk 0:00:59.6]} 38. Rxe7+ {[%clk 0:01:04.8]} 38... Kd6 {[%clk
0:01:00.9]} 39. Ra7 {[%clk 0:01:02.2]} 39... Nf6 {[%clk 0:01:02.2]} 40. Ke1
{[%clk 0:00:59.7]} 40... g4 {[%clk 0:00:59.7]} 41. Rxa5 {[%clk 0:01:00]} 41...
Nxe4 {[%clk 0:01:00.7]} 42. Ra8 {[%clk 0:00:54.2]} 42... Nc3 {[%clk 0:01:01.9]}
43. Bd3 {[%clk 0:00:55.3]} 43... e5 {[%clk 0:01:03.4]} 44. Re8 {[%clk 0:00:56]}
44... g3 {[%clk 0:00:21.4]} 45. a5 {[%clk 0:00:53.5]} 45... e4 {[%clk
0:00:22.8]} 46. Rxe4 {[%clk 0:00:54.1]} 46... Nxe4 {[%clk 0:00:23.6]} 47. Bxe4
{[%clk 0:00:55.4]} 47... Rg1 {[%clk 0:00:22.8]} 48. Ke2 {[%clk 0:00:53.3]} 48...
g2 {[%clk 0:00:24.2]} 49. Nd2 {[%clk 0:00:54.1]} 49... Re1+ {[%clk 0:00:25.2]}
50. Kxe1 {[%clk 0:00:50.5]} 50... g1=Q+ {[%clk 0:00:27.1]} 51. Ke2 {[%clk
0:00:51.4]} 51... Qe3+ {[%clk 0:00:28]} 52. Kd1 {[%clk 0:00:52.8]} 52... Kc7
{[%clk 0:00:28.7]} 53. a6 {[%clk 0:00:52.5]} 53... Qg1+ {[%clk 0:00:29.8]} 54.
Ke2 {[%clk 0:00:53.6]} 54... Qg4+ {[%clk 0:00:31.2]} 55. Bf3 {[%clk 0:00:54.1]}
55... Qe6+ {[%clk 0:00:32.1]} 56. Kd1 {[%clk 0:00:53.8]} 56... Qxa6 {[%clk
0:00:34]} 57. Nc4 {[%clk 0:00:51.7]} 57... Qa1+ {[%clk 0:00:35]} 58. Kd2 {[%clk
0:00:51.6]} 58... Qc3+ {[%clk 0:00:35.6]} 59. Kd1 {[%clk 0:00:52.9]} 59... Qxf3+
{[%clk 0:00:36.7]} 0-1

[Event "*** Titled Tuesday Blitz"]
[Site "Chess.com"]
[Date "2020.02.04"]
[Round "2"]
[White "riconaipe"]
[Black "JonahWillow"]
[Result "1-0"]
[WhiteElo "2536"]
[BlackElo "2739"]
[TimeControl "180+2"]
[EndTime "13:25:20 PST"]
[Termination "riconaipe won by resignation"]

1. d4 {[%clk 0:03:01.9]} 1... d5 {[%clk 0:03:01.1]} 2. c4 {[%clk 0:03:02.2]}
2... dxc4 {[%clk 0:03:03]} 3. e4 {[%clk 0:03:02.1]} 3... Nc6 {[%clk 0:03:02.2]}
4. Be3 {[%clk 0:03:00.6]} 4... e6 {[%clk 0:02:53.6]} 5. Bxc4 {[%clk 0:03:00.6]}
5... Nf6 {[%clk 0:02:29.7]} 6. Nc3 {[%clk 0:02:54]} 6... Bb4 {[%clk 0:02:27.5]}
7. e5 {[%clk 0:02:54.5]} 7... Nd5 {[%clk 0:02:25.6]} 8. Ne2 {[%clk 0:02:44.6]}
8... Nxe3 {[%clk 0:02:14.7]} 9. fxe3 {[%clk 0:02:46.5]} 9... Qg5 {[%clk
0:01:47.1]} 10. Nf4 {[%clk 0:02:43.3]} 10... Bd7 {[%clk 0:01:36.5]} 11. O-O
{[%clk 0:02:42.5]} 11... Bxc3 {[%clk 0:01:36.3]} 12. bxc3 {[%clk 0:02:42.9]}
12... Na5 {[%clk 0:01:35.2]} 13. Be2 {[%clk 0:02:29.5]} 13... Bc6 {[%clk
0:01:29.9]} 14. Bf3 {[%clk 0:02:28.9]} 14... O-O {[%clk 0:01:28.2]} 15. Rb1
{[%clk 0:02:28.1]} 15... b6 {[%clk 0:01:25.7]} 16. Bxc6 {[%clk 0:02:16.5]} 16...
Nxc6 {[%clk 0:01:27.6]} 17. Qf3 {[%clk 0:02:17.5]} 17... Na5 {[%clk 0:01:27.3]}
18. g3 {[%clk 0:02:13.9]} 18... Nc4 {[%clk 0:01:21.1]} 19. Rbd1 {[%clk
0:02:06.6]} 19... Rad8 {[%clk 0:01:18.5]} 20. h4 {[%clk 0:02:06.8]} 20... Qe7
{[%clk 0:01:13.5]} 21. Qe2 {[%clk 0:01:52.4]} 21... b5 {[%clk 0:01:12.4]} 22. a4
{[%clk 0:01:37.4]} 22... a6 {[%clk 0:01:09.2]} 23. axb5 {[%clk 0:01:38]} 23...
axb5 {[%clk 0:01:11.1]} 24. Rb1 {[%clk 0:01:35.8]} 24... c6 {[%clk 0:01:11.6]}
25. Nh5 {[%clk 0:01:18.7]} 25... Ra8 {[%clk 0:00:56]} 26. Nf6+ {[%clk
0:00:59.9]} 26... Kh8 {[%clk 0:00:55.8]} 27. Ne4 {[%clk 0:00:49.9]} 27... Ra3
{[%clk 0:00:48.3]} 28. Rf3 {[%clk 0:00:49.6]} 28... Rfa8 {[%clk 0:00:41.4]} 29.
Ng5 {[%clk 0:00:49]} 29... Ra2 {[%clk 0:00:38]} 30. Qd3 {[%clk 0:00:31.8]} 30...
f5 {[%clk 0:00:16.2]} 31. exf6 {[%clk 0:00:32.8]} 31... gxf6 {[%clk 0:00:16.8]}
32. Rxf6 {[%clk 0:00:34.1]} 32... R2a7 {[%clk 0:00:14]} 33. Rbf1 {[%clk
0:00:32]} 33... Qd6 {[%clk 0:00:13.1]} 34. e4 {[%clk 0:00:27.2]} 34... Ne5
{[%clk 0:00:12.9]} 35. Qe2 {[%clk 0:00:24.4]} 35... Nc4 {[%clk 0:00:12.9]} 36.
Qf2 {[%clk 0:00:21.5]} 36... Rg8 {[%clk 0:00:12.2]} 37. Rf7 {[%clk 0:00:17.9]}
37... Rg7 {[%clk 0:00:10.5]} 38. Rf8+ {[%clk 0:00:17.6]} 38... Rg8 {[%clk
0:00:11.8]} 39. Rf7 {[%clk 0:00:15.2]} 39... Rg7 {[%clk 0:00:10.8]} 40. e5
{[%clk 0:00:16.2]} 40... Raxf7 {[%clk 0:00:10.4]} 41. Nxf7+ {[%clk 0:00:16.8]}
41... Rxf7 {[%clk 0:00:11.4]} 42. Qxf7 {[%clk 0:00:17.2]} 42... Qd8 {[%clk
0:00:13]} 43. Qxe6 {[%clk 0:00:14]} 43... Ne3 {[%clk 0:00:12.6]} 44. Qf6+ {[%clk
0:00:14.7]} 44... Qxf6 {[%clk 0:00:12.1]} 45. Rxf6 {[%clk 0:00:16.6]} 45... Kg7
{[%clk 0:00:13.6]} 46. Rxc6 {[%clk 0:00:17.7]} 46... Nd5 {[%clk 0:00:09.1]} 47.
Rc5 {[%clk 0:00:18.4]} 1-0

[Event "*** Titled Tuesday Blitz"]
[Site "Chess.com"]
[Date "2020.02.04"]
[Round "2"]
[White "Majkelopulos"]
[Black "vlad_Sid"]
[Result "0-1"]
[WhiteElo "2490"]
[BlackElo "2729"]
[TimeControl "180+2"]
[EndTime "13:25:28 PST"]
[Termination "vlad_Sid won by resignation"]

1. e4 {[%clk 0:03:01.9]} 1... c6 {[%clk 0:03:00.8]} 2. d4 {[%clk 0:03:01.2]}
2... d5 {[%clk 0:03:02.7]} 3. e5 {[%clk 0:03:02.4]} 3... Bf5 {[%clk 0:03:02]} 4.
Nd2 {[%clk 0:03:03.5]} 4... e6 {[%clk 0:03:03.2]} 5. Nb3 {[%clk 0:03:05]} 5...
Nd7 {[%clk 0:03:04.5]} 6. Be3 {[%clk 0:03:05.8]} 6... a6 {[%clk 0:03:05.4]} 7.
f4 {[%clk 0:03:05.3]} 7... Rc8 {[%clk 0:03:06.1]} 8. Nf3 {[%clk 0:03:03.5]} 8...
c5 {[%clk 0:03:04.5]} 9. c3 {[%clk 0:03:03.7]} 9... h5 {[%clk 0:03:02.4]} 10.
Be2 {[%clk 0:03:02.8]} 10... g6 {[%clk 0:02:53.4]} 11. O-O {[%clk 0:03:02.5]}
11... Nh6 {[%clk 0:02:52.5]} 12. h3 {[%clk 0:02:58.2]} 12... h4 {[%clk
0:02:40.3]} 13. Bf2 {[%clk 0:02:53]} 13... Be7 {[%clk 0:02:39.4]} 14. Qe1 {[%clk
0:02:51.9]} 14... Ng8 {[%clk 0:01:21.9]} 15. Rc1 {[%clk 0:01:10.2]} 15... Be4
{[%clk 0:01:15.9]} 16. Nfd2 {[%clk 0:01:02.6]} 16... Bf5 {[%clk 0:01:08.6]} 17.
c4 {[%clk 0:01:04.1]} 17... dxc4 {[%clk 0:00:58.2]} 18. Nxc4 {[%clk 0:01:06]}
18... b5 {[%clk 0:00:58.9]} 19. Nd6+ {[%clk 0:01:05.5]} 19... Bxd6 {[%clk
0:00:59]} 20. exd6 {[%clk 0:01:07.4]} 20... c4 {[%clk 0:01:00.5]} 21. Nc5 {[%clk
0:01:05.6]} 21... Nb6 {[%clk 0:00:57.5]} 22. d5 {[%clk 0:00:21]} 22... Qxd6
{[%clk 0:00:19.2]} 23. dxe6 {[%clk 0:00:21.8]} 23... Rxc5 {[%clk 0:00:16.8]} 24.
exf7+ {[%clk 0:00:23.2]} 24... Kxf7 {[%clk 0:00:15.6]} 25. Bxc5 {[%clk
0:00:23.3]} 25... Qxc5+ {[%clk 0:00:16.2]} 26. Kh1 {[%clk 0:00:25.2]} 26... Nf6
{[%clk 0:00:14.7]} 27. Bg4 {[%clk 0:00:26.6]} 27... Bxg4 {[%clk 0:00:11.8]} 28.
hxg4 {[%clk 0:00:28.5]} 28... Nxg4 {[%clk 0:00:08.5]} 29. Qe2 {[%clk 0:00:29.3]}
29... Ne3 {[%clk 0:00:06.8]} 30. Rf3 {[%clk 0:00:30.6]} 30... Nf5 {[%clk
0:00:08.1]} 31. Qd2 {[%clk 0:00:29.2]} 31... Re8 {[%clk 0:00:08.6]} 32. Rd1
{[%clk 0:00:30.2]} 32... Re7 {[%clk 0:00:06.9]} 33. Qd8 {[%clk 0:00:28.9]} 33...
Ng3+ {[%clk 0:00:05.4]} 34. Kh2 {[%clk 0:00:29.6]} 34... Qf5 {[%clk 0:00:05.9]}
35. Qh8 {[%clk 0:00:29.6]} 35... Nd7 {[%clk 0:00:05.7]} 36. Qh7+ {[%clk
0:00:30.6]} 36... Ke8 {[%clk 0:00:06.9]} 37. Qg8+ {[%clk 0:00:30]} 37... Nf8
{[%clk 0:00:07.9]} 38. Rf2 {[%clk 0:00:25.9]} 38... Ne4 {[%clk 0:00:07.8]} 39.
Rf3 {[%clk 0:00:26]} 39... Nf6 {[%clk 0:00:08.9]} 40. Qh8 {[%clk 0:00:25.9]}
40... Ng4+ {[%clk 0:00:10.1]} 41. Kh1 {[%clk 0:00:24.7]} 41... Nf6 {[%clk
0:00:11.6]} 42. Rf2 {[%clk 0:00:20.1]} 42... Rh7 {[%clk 0:00:12]} 43. Re2+
{[%clk 0:00:19.9]} 43... Kf7 {[%clk 0:00:12.8]} 44. Qxh7+ {[%clk 0:00:15.5]}
44... N8xh7 {[%clk 0:00:14.7]} 45. Rde1 {[%clk 0:00:15.9]} 45... Qxf4 {[%clk
0:00:12.9]} 0-1

[Event "*** Titled Tuesday Blitz"]
[Site "Chess.com"]
[Date "2020.02.04"]
[Round "2"]
[White "almaguerjm"]
[Black "joppie2"]
[Result "0-1"]
[WhiteElo "2393"]
[BlackElo "2900"]
[TimeControl "180+2"]
[EndTime "13:25:36 PST"]
[Termination "joppie2 won by resignation"]

1. d4 {[%clk 0:03:01.5]} 1... Nf6 {[%clk 0:02:53.1]} 2. Nf3 {[%clk 0:03:00.8]}
2... g6 {[%clk 0:02:52.5]} 3. c4 {[%clk 0:03:01.3]} 3... Bg7 {[%clk 0:02:52]} 4.
g3 {[%clk 0:03:01.4]} 4... O-O {[%clk 0:02:53.2]} 5. Bg2 {[%clk 0:03:01.9]} 5...
a6 {[%clk 0:02:53.6]} 6. O-O {[%clk 0:03:02.7]} 6... b5 {[%clk 0:02:51.4]} 7.
Qc2 {[%clk 0:02:55.5]} 7... bxc4 {[%clk 0:02:51.2]} 8. Qxc4 {[%clk 0:02:56.2]}
8... Bb7 {[%clk 0:02:52.2]} 9. Bf4 {[%clk 0:02:57]} 9... Nd5 {[%clk 0:02:51.4]}
10. Nc3 {[%clk 0:02:55.8]} 10... Nxf4 {[%clk 0:02:52]} 11. gxf4 {[%clk
0:02:57.7]} 11... e6 {[%clk 0:02:47.7]} 12. Rac1 {[%clk 0:02:53.8]} 12... Nc6
{[%clk 0:02:47.9]} 13. e3 {[%clk 0:02:53.1]} 13... Ra7 {[%clk 0:02:45.5]} 14.
Rfd1 {[%clk 0:02:53.8]} 14... Qa8 {[%clk 0:02:46.4]} 15. Ne1 {[%clk 0:02:50]}
15... Rc8 {[%clk 0:02:44]} 16. b4 {[%clk 0:02:46.9]} 16... Ne7 {[%clk
0:02:43.1]} 17. Bxb7 {[%clk 0:02:32.1]} 17... Qxb7 {[%clk 0:02:38]} 18. Na4
{[%clk 0:02:33.2]} 18... d6 {[%clk 0:02:34.9]} 19. a3 {[%clk 0:02:22]} 19... Nf5
{[%clk 0:02:26.8]} 20. Qc6 {[%clk 0:02:17.6]} 20... Qb5 {[%clk 0:02:25.5]} 21.
Nb2 {[%clk 0:02:10.8]} 21... Rb8 {[%clk 0:02:04.2]} 22. Ned3 {[%clk 0:02:09.3]}
22... Rb6 {[%clk 0:01:46.6]} 23. Qc2 {[%clk 0:01:51.7]} 23... Nh4 {[%clk
0:01:43.1]} 24. Ne1 {[%clk 0:01:30.1]} 24... Bf6 {[%clk 0:01:26.4]} 25. Qd3
{[%clk 0:01:25.7]} 25... Qd5 {[%clk 0:01:19.2]} 26. e4 {[%clk 0:01:25.3]} 26...
Qh5 {[%clk 0:01:15.7]} 27. e5 {[%clk 0:01:22.3]} 27... Be7 {[%clk 0:01:11.8]}
28. f3 {[%clk 0:01:20.8]} 28... d5 {[%clk 0:01:07]} 29. Na4 {[%clk 0:01:20.6]}
29... Rb8 {[%clk 0:01:05.4]} 30. Rc6 {[%clk 0:01:21.3]} 30... a5 {[%clk
0:01:05.7]} 31. b5 {[%clk 0:01:22.6]} 31... Qf5 {[%clk 0:01:03.2]} 32. Qxf5
{[%clk 0:01:07.3]} 32... Nxf5 {[%clk 0:01:02.8]} 33. b6 {[%clk 0:00:32.2]} 33...
cxb6 {[%clk 0:01:01.5]} 34. Nxb6 {[%clk 0:00:33.4]} 34... Ra6 {[%clk 0:00:54.6]}
35. Nd7 {[%clk 0:00:31.1]} 35... Rxc6 {[%clk 0:00:55.6]} 36. Nxb8 {[%clk
0:00:32.4]} 36... Rc4 {[%clk 0:00:56.6]} 37. Kf2 {[%clk 0:00:30.6]} 37... Bxa3
{[%clk 0:00:53.8]} 38. Na6 {[%clk 0:00:16.7]} 38... Bb2 {[%clk 0:00:52.9]} 39.
Rb1 {[%clk 0:00:13.2]} 39... Bxd4+ {[%clk 0:00:53.6]} 40. Ke2 {[%clk 0:00:14.7]}
40... a4 {[%clk 0:00:48.4]} 41. Rb8+ {[%clk 0:00:15.3]} 41... Kg7 {[%clk
0:00:38.6]} 42. Nb4 {[%clk 0:00:14.6]} 42... a3 {[%clk 0:00:39.4]} 43. Nec2
{[%clk 0:00:15.3]} 43... a2 {[%clk 0:00:38]} 44. Ra8 {[%clk 0:00:15.5]} 44...
a1=Q {[%clk 0:00:37]} 45. Nxa1 {[%clk 0:00:16.3]} 45... Rxb4 {[%clk 0:00:38.1]}
46. Nc2 {[%clk 0:00:17.6]} 46... Rb2 {[%clk 0:00:39]} 47. Kd3 {[%clk 0:00:19]}
47... Rb3+ {[%clk 0:00:38.2]} 48. Ke2 {[%clk 0:00:19]} 48... Rc3 {[%clk
0:00:39.9]} 49. Ra2 {[%clk 0:00:17.1]} 49... Bxe5 {[%clk 0:00:41.2]} 50. fxe5
{[%clk 0:00:17.7]} 50... Rxc2+ {[%clk 0:00:42.9]} 51. Rxc2 {[%clk 0:00:17.2]}
51... Nd4+ {[%clk 0:00:44.8]} 52. Kd3 {[%clk 0:00:18.8]} 52... Nxc2 {[%clk
0:00:46.7]} 53. Kxc2 {[%clk 0:00:20.7]} 53... Kh6 {[%clk 0:00:47.7]} 0-1

[Event "*** Titled Tuesday Blitz"]
[Site "Chess.com"]
[Date "2020.02.04"]
[Round "2"]
[White "Zq1"]
[Black "WelshTiger"]
[Result "1/2-1/2"]
[WhiteElo "2540"]
[BlackElo "2330"]
[TimeControl "180+2"]
[EndTime "13:25:50 PST"]
[Termination "Game drawn by repetition"]

1. d4 {[%clk 0:03:00.1]} 1... Nf6 {[%clk 0:03:00.5]} 2. c4 {[%clk 0:02:59]} 2...
c5 {[%clk 0:03:01.6]} 3. Nf3 {[%clk 0:02:58.7]} 3... cxd4 {[%clk 0:03:02.2]} 4.
Nxd4 {[%clk 0:02:59.7]} 4... e5 {[%clk 0:03:03.4]} 5. Nb5 {[%clk 0:02:59.8]}
5... d5 {[%clk 0:03:04.4]} 6. cxd5 {[%clk 0:03:00.6]} 6... Bb4+ {[%clk
0:03:05.4]} 7. Bd2 {[%clk 0:02:55]} 7... Bc5 {[%clk 0:03:06.2]} 8. N5c3 {[%clk
0:02:52.7]} 8... Nxd5 {[%clk 0:03:00.2]} 9. Nxd5 {[%clk 0:02:50.7]} 9... Qxd5
{[%clk 0:03:00.8]} 10. Nc3 {[%clk 0:02:51.8]} 10... Qe6 {[%clk 0:02:42.8]} 11.
g3 {[%clk 0:02:47.9]} 11... O-O {[%clk 0:02:20.7]} 12. Bg2 {[%clk 0:02:43.7]}
12... Nc6 {[%clk 0:02:20.5]} 13. O-O {[%clk 0:02:43.7]} 13... Rd8 {[%clk
0:02:12.8]} 14. Rc1 {[%clk 0:02:44]} 14... Bf8 {[%clk 0:02:12.9]} 15. e3 {[%clk
0:02:39.4]} 15... Rb8 {[%clk 0:02:05]} 16. Qe2 {[%clk 0:02:37.8]} 16... a6
{[%clk 0:02:00.7]} 17. b3 {[%clk 0:02:32.8]} 17... Nb4 {[%clk 0:01:59.4]} 18.
Rfd1 {[%clk 0:02:29.8]} 18... b5 {[%clk 0:01:59.3]} 19. Be1 {[%clk 0:02:27.1]}
19... Rxd1 {[%clk 0:01:35.8]} 20. Qxd1 {[%clk 0:02:16.8]} 20... Bb7 {[%clk
0:01:30.7]} 21. Bxb7 {[%clk 0:02:14.1]} 21... Rxb7 {[%clk 0:01:31.9]} 22. Qe2
{[%clk 0:02:02.3]} 22... Rd7 {[%clk 0:01:30]} 23. Rd1 {[%clk 0:02:01.4]} 23...
Rxd1 {[%clk 0:01:28.7]} 24. Qxd1 {[%clk 0:02:02.5]} 24... Qd6 {[%clk 0:01:30.1]}
25. Qxd6 {[%clk 0:02:03]} 25... Bxd6 {[%clk 0:01:31.7]} 26. Kf1 {[%clk 0:01:54]}
26... f5 {[%clk 0:01:29.8]} 27. f3 {[%clk 0:01:53.7]} 27... Kf7 {[%clk
0:01:30.1]} 28. Ke2 {[%clk 0:01:54.3]} 28... Ke6 {[%clk 0:01:31.1]} 29. e4
{[%clk 0:01:54.7]} 29... g6 {[%clk 0:01:30.3]} 30. Bf2 {[%clk 0:01:48.7]} 30...
Nc6 {[%clk 0:01:16]} 31. Nd5 {[%clk 0:01:47.3]} 31... Nb4 {[%clk 0:01:14.1]} 32.
Nxb4 {[%clk 0:01:41.8]} 32... Bxb4 {[%clk 0:01:14.5]} 33. Kd3 {[%clk 0:01:39.6]}
33... Bd6 {[%clk 0:01:09.2]} 34. h3 {[%clk 0:01:35.8]} 34... h5 {[%clk
0:01:06.2]} 35. g4 {[%clk 0:01:36]} 35... hxg4 {[%clk 0:01:06.2]} 36. exf5+
{[%clk 0:01:16.8]} 36... Kxf5 {[%clk 0:00:33.8]} 37. hxg4+ {[%clk 0:01:09]}
37... Kf4 {[%clk 0:00:34.9]} 38. Ke2 {[%clk 0:01:09.1]} 38... e4 {[%clk
0:00:36.3]} 39. Be3+ {[%clk 0:01:09.1]} 39... Kg3 {[%clk 0:00:37.5]} 40. fxe4
{[%clk 0:01:08.4]} 40... Kxg4 {[%clk 0:00:38.8]} 41. Kd3 {[%clk 0:01:03.9]}
41... Kf3 {[%clk 0:00:37.8]} 42. Kd4 {[%clk 0:00:53.7]} 42... Be7 {[%clk
0:00:37.5]} 43. Bg1 {[%clk 0:00:41.5]} 43... g5 {[%clk 0:00:37.8]} 44. Kd5
{[%clk 0:00:41.3]} 44... g4 {[%clk 0:00:38.9]} 45. e5 {[%clk 0:00:41.2]} 45...
g3 {[%clk 0:00:37.4]} 46. e6 {[%clk 0:00:40.7]} 46... Ke2 {[%clk 0:00:34.8]} 47.
Kc6 {[%clk 0:00:38.9]} 47... Kd3 {[%clk 0:00:34.2]} 48. Kb6 {[%clk 0:00:34.4]}
48... Kc3 {[%clk 0:00:26.6]} 49. Kxa6 {[%clk 0:00:34.4]} 49... b4 {[%clk
0:00:27.7]} 50. Kb5 {[%clk 0:00:21.7]} 50... g2 {[%clk 0:00:26.4]} 51. Bb6
{[%clk 0:00:17.9]} 51... Kb2 {[%clk 0:00:26.1]} 52. Kc4 {[%clk 0:00:18.2]} 52...
Kxa2 {[%clk 0:00:26.5]} 53. Bd4 {[%clk 0:00:19.5]} 53... Ka3 {[%clk 0:00:25.9]}
54. Bg1 {[%clk 0:00:18.8]} 54... Ka2 {[%clk 0:00:26.8]} 55. Bd4 {[%clk
0:00:19.3]} 55... Ka3 {[%clk 0:00:27.9]} 56. Bg1 {[%clk 0:00:19.3]} 56... Ka2
{[%clk 0:00:28.7]} 57. Bd4 {[%clk 0:00:20]} 1/2-1/2

[Event "*** Titled Tuesday Blitz"]
[Site "Chess.com"]
[Date "2020.02.04"]
[Round "2"]
[White "alishersuleymenov"]
[Black "arminmusovic"]
[Result "1-0"]
[WhiteElo "2799"]
[BlackElo "2533"]
[TimeControl "180+2"]
[EndTime "13:25:52 PST"]
[Termination "alishersuleymenov won by resignation"]

1. d4 {[%clk 0:03:01.3]} 1... d5 {[%clk 0:03:01.1]} 2. Bf4 {[%clk 0:03:02.1]}
2... c5 {[%clk 0:03:02.3]} 3. e3 {[%clk 0:03:03.6]} 3... Nc6 {[%clk 0:03:03.4]}
4. c3 {[%clk 0:03:05.1]} 4... a6 {[%clk 0:03:04.3]} 5. Nd2 {[%clk 0:03:04.3]}
5... Nf6 {[%clk 0:03:05.1]} 6. Ngf3 {[%clk 0:03:05.2]} 6... Bg4 {[%clk
0:03:06.4]} 7. h3 {[%clk 0:02:59]} 7... Bh5 {[%clk 0:03:07.2]} 8. g4 {[%clk
0:02:59.9]} 8... Bg6 {[%clk 0:03:08.1]} 9. dxc5 {[%clk 0:03:01.5]} 9... e6
{[%clk 0:03:08.7]} 10. b4 {[%clk 0:03:02.8]} 10... Be7 {[%clk 0:03:10.1]} 11.
Be2 {[%clk 0:02:56]} 11... O-O {[%clk 0:03:10.9]} 12. O-O {[%clk 0:02:52.2]}
12... Nd7 {[%clk 0:03:07.2]} 13. a3 {[%clk 0:02:39.3]} 13... f5 {[%clk
0:02:58.7]} 14. c4 {[%clk 0:02:40.3]} 14... fxg4 {[%clk 0:02:58.9]} 15. hxg4
{[%clk 0:02:42.2]} 15... d4 {[%clk 0:02:56.7]} 16. Nb3 {[%clk 0:02:27.7]} 16...
e5 {[%clk 0:02:49.8]} 17. Bg3 {[%clk 0:02:13.1]} 17... d3 {[%clk 0:02:51.1]} 18.
Bxd3 {[%clk 0:02:14.5]} 18... e4 {[%clk 0:02:44.1]} 19. Be2 {[%clk 0:02:07.7]}
19... exf3 {[%clk 0:02:44.2]} 20. Bxf3 {[%clk 0:02:09.6]} 20... Kh8 {[%clk
0:02:38.6]} 21. b5 {[%clk 0:01:37.5]} 21... axb5 {[%clk 0:01:45.5]} 22. cxb5
{[%clk 0:01:39.4]} 22... Na5 {[%clk 0:01:46.7]} 23. Nxa5 {[%clk 0:01:38.1]}
23... Rxa5 {[%clk 0:01:48.4]} 24. c6 {[%clk 0:01:29.5]} 24... bxc6 {[%clk
0:01:35.5]} 25. Bxc6 {[%clk 0:01:31.4]} 25... Nf6 {[%clk 0:01:15.5]} 26. Qxd8
{[%clk 0:01:28.7]} 26... Bxd8 {[%clk 0:01:17.4]} 27. Bd6 {[%clk 0:01:25.5]}
27... Rg8 {[%clk 0:01:18.4]} 28. Rad1 {[%clk 0:01:14.5]} 28... Nxg4 {[%clk
0:01:06.3]} 29. Rd4 {[%clk 0:01:08.7]} 29... h5 {[%clk 0:00:59]} 30. Rfd1 {[%clk
0:00:53.3]} 30... Bb6 {[%clk 0:00:59.3]} 31. R4d2 {[%clk 0:00:44.6]} 31... Rd8
{[%clk 0:00:56.6]} 32. Bb4 {[%clk 0:00:41.8]} 32... Rxd2 {[%clk 0:00:57.3]} 33.
Rxd2 {[%clk 0:00:43.7]} 33... Ra7 {[%clk 0:00:58.5]} 34. Rd6 {[%clk 0:00:41.5]}
34... Kh7 {[%clk 0:00:40.2]} 35. Bf3 {[%clk 0:00:31.4]} 35... Bc7 {[%clk
0:00:32.7]} 36. Rd1 {[%clk 0:00:32.2]} 36... Bh2+ {[%clk 0:00:28.8]} 37. Kg2
{[%clk 0:00:31.9]} 37... Be5 {[%clk 0:00:27]} 38. b6 {[%clk 0:00:32.2]} 38...
Rf7 {[%clk 0:00:28.2]} 39. b7 {[%clk 0:00:28.4]} 39... Nh2 {[%clk 0:00:18.4]}
40. Bd6 {[%clk 0:00:21.7]} 40... Bxd6 {[%clk 0:00:13.2]} 41. Rxd6 {[%clk
0:00:23.6]} 41... Nxf3 {[%clk 0:00:11]} 42. b8=Q {[%clk 0:00:24.6]} 42... Be4
{[%clk 0:00:11.2]} 43. Rd8 {[%clk 0:00:15.4]} 43... h4 {[%clk 0:00:06]} 44. Kf1
{[%clk 0:00:11.1]} 44... Ng5 {[%clk 0:00:03.9]} 45. Rh8+ {[%clk 0:00:09.4]}
45... Kg6 {[%clk 0:00:05.3]} 46. Rxh4 {[%clk 0:00:10.5]} 46... Bd3+ {[%clk
0:00:06.9]} 47. Kg2 {[%clk 0:00:11.9]} 47... Be4+ {[%clk 0:00:08.1]} 48. Rxe4
{[%clk 0:00:10.6]} 48... Nxe4 {[%clk 0:00:10]} 49. f3 {[%clk 0:00:11.8]} 49...
Nf6 {[%clk 0:00:10.4]} 50. a4 {[%clk 0:00:12.5]} 50... Rd7 {[%clk 0:00:11.5]}
51. a5 {[%clk 0:00:13.2]} 51... Rd2+ {[%clk 0:00:12.7]} 52. Kf1 {[%clk
0:00:14.7]} 52... Nh5 {[%clk 0:00:12]} 53. a6 {[%clk 0:00:15.7]} 53... Ng3+
{[%clk 0:00:12.9]} 54. Qxg3+ {[%clk 0:00:16.5]} 1-0